fUSD/lending_fUSD_20251101
["ID","MTS","AMOUNT","RATE_DAILY","PERIOD"]
[392804804,1761973838338,-500.0,0.00014989,2]
[392804805,1761973838348,-500.0,0.00014989,2]
[392804806,1761973838359,-500.0,0.00014989,2]
[392804807,1761973838368,-329.39790189,0.00014989,2]
[392804808,1761973838380,-112.70985877,0.00014989,2]
[392804809,1761973838389,-2230.75788994,0.00015,2]
[392804810,1761973838401,-1008.59522097,0.00015,2]
[392804820,1761973838630,-4999.91255724,0.00015,2]
[392804823,1761973838643,-5254.56915896,0.00015,2]
[392804825,1761973838655,-3055.164867,0.00015,2]
[392804827,1761973838667,-4457.9851755,0.00015,2]
[392804829,1761973838679,-5353.2532445,0.00015,2]
[392804832,1761973838692,-4592.63923609,0.00015,2]
[392804834,1761973838703,-1270.36384797,0.00015,2]
[392804836,1761973838714,-4254.68585677,0.00015,2]
[392804839,1761973838727,-2269044.15996133,0.00015,2]
[392804840,1761973838737,-2009104.46086048,0.00015,2]
[392804845,1761973840387,-1030.64394265,0.00015,2]
[392804846,1761973842053,-1.6e-07,0.00015,2]
[392804847,1761973842069,-7455.72717336,0.00015,2]
[392804848,1761973842081,-1069296.63076174,0.00015,2]
[392804849,1761973842091,-1288.2505875,0.00015,2]
[392804850,1761973842102,-117714.8648728,0.00015,2]
[392804851,1761973842112,-200.0,0.00015,2]
[392804852,1761973842122,-154.854,0.00015,2]
[392804853,1761973842132,-151.0,0.00015,2]
[392804854,1761973842141,-151.0,0.00015,2]
[392804855,1761973842154,-168.0,0.00015007,2]
[392804856,1761973842164,-168.0,0.0001501,2]
[392804857,1761973842174,-168.0,0.00015012,2]
[392804858,1761973842183,-1680.0,0.00015013,2]
[392804859,1761973842193,-168.0,0.00015085,2]
[392804860,1761973842203,-248.71531821,0.00015086,2]
[392804861,1761973842213,-514.84070869,0.00015086,2]
[392804862,1761973842223,-646.65982734,0.00015086,2]
[392804863,1761973842232,-322.6107,0.00015086,2]
[392804864,1761973842242,-187.78006525,0.00015086,2]
[392804865,1761973842253,-169.926,0.0001509,2]
[392804866,1761973842263,-2766.155,0.0001509,2]
[392804867,1761973842274,-168.0,0.00015097,2]
[392804868,1761973842285,-250.0,0.00015108,2]
[392804869,1761973842295,-255.0,0.00015118,2]
[392804870,1761973842306,-352.66,0.0001512,2]
[392804871,1761973842315,-176.7,0.0001512,2]
[392804872,1761973842326,-168.0,0.00015169,2]
[392804873,1761973842337,-655.83,0.00015211,2]
[392804874,1761973842347,-839.0,0.00015217,2]
[392804875,1761973842358,-166.96,0.0001526,2]
[392804876,1761973842367,-839.0,0.00015295,2]
[392804877,1761973842378,-168.0,0.00015308,2]
[392804878,1761973842388,-839.0,0.00015348,2]
[392804879,1761973842398,-168.0,0.00015354,2]
[392804880,1761973842408,-168.0,0.00015384,2]
[392804881,1761973842419,-933.9393694,0.00015386,2]
[392804882,1761973842429,-839.0,0.00015419,2]
[392804883,1761973842439,-588.01,0.00015428,2]
[392804884,1761973842449,-3421.0,0.0001545,2]
[392804885,1761973842459,-839.0,0.00015458,2]
[392804886,1761973842469,-655.83,0.00015485,2]
[392804887,1761973842478,-300.0,0.00015512,2]
[392804888,1761973842489,-505.61853549,0.00015521,2]
[392804889,1761973842499,-514.82975373,0.00015521,2]
[392804890,1761973842509,-1000.0,0.00015521,2]
[392804891,1761973842519,-1000.0,0.00015521,2]
[392804892,1761973842539,-168.0,0.00015541,2]
[392804893,1761973842552,-839.0,0.00015563,2]
[392804894,1761973842563,-671.01388889,0.00015564,2]
[392804895,1761973842578,-820.0,0.00015565,2]
[392804896,1761973842588,-607.0,0.00015565,2]
[392804897,1761973842598,-573.0,0.00015565,2]
[392804898,1761973842609,-3420.0,0.00015565,2]
[392804899,1761973842619,-1594.0,0.00015565,2]
[392804900,1761973842629,-1314.0,0.00015565,2]
[392804901,1761973842639,-819.0,0.00015565,2]
[392804902,1761973842650,-1272.0,0.00015565,2]
[392804903,1761973842661,-1187.0,0.00015565,2]
[392804904,1761973842671,-905.0,0.00015565,2]
[392804905,1761973842680,-6631.0,0.00015565,2]
[392804906,1761973842690,-2140.0,0.00015565,2]
[392804907,1761973842700,-6468.0,0.00015565,2]
[392804908,1761973842709,-559.0,0.00015565,2]
[392804909,1761973842719,-168.0,0.00015567,2]
[392804910,1761973842730,-152.0,0.00015599,2]
[392804911,1761973842739,-153.54960491,0.00015599,2]
[392804912,1761973842751,-168.93,0.00015611,2]
[392804913,1761973842760,-533.88981491,0.00015634,2]
[392804914,1761973842770,-168.0,0.00015651,2]
[392804915,1761973842780,-500.0,0.00015671,2]
[392804916,1761973842790,-150.0,0.000157,2]
[392804917,1761973842800,-150.0,0.000157,2]
[392804918,1761973842809,-150.0,0.000157,2]
[392804919,1761973842819,-168.291,0.000157,2]
[392804920,1761973842829,-150.0,0.000157,2]
[392804921,1761973842839,-150.0,0.000157,2]
[392804922,1761973842849,-150.0,0.000157,2]
[392804923,1761973842859,-150.0,0.000157,2]
[392804924,1761973842869,-150.0,0.000157,2]
[392804925,1761973842879,-150.0,0.000157,2]
[392804926,1761973842890,-66688.7503703,0.00015701,2]
[392804927,1761973842899,-168.0,0.00015738,2]
[392804928,1761973842909,-655.83,0.00015759,2]
[392804929,1761973842919,-168.0,0.0001577,2]
[392804930,1761973842929,-150.0,0.00015773,2]
[392804931,1761973842938,-208.390041,0.00015773,2]
[392804932,1761973842948,-150.0,0.00015836,2]
[392804933,1761973842957,-308.99,0.00015836,2]
[392804934,1761973842967,-302.01,0.00015836,2]
[392804935,1761973842977,-828.61,0.00015836,2]
[392804936,1761973842988,-150.0,0.00015836,2]
[392804937,1761973842998,-150.0,0.00015836,2]
[392804938,1761973843008,-353.22,0.00015836,2]
[392804939,1761973843018,-168.0,0.00015838,2]
[392804940,1761973843028,-168.0,0.00015844,2]
[392804941,1761973843038,-168.0,0.00015847,2]
[392804942,1761973843047,-386.47779482,0.00015871,7]
[392804943,1761973843057,-163.14201833,0.00015924,2]
[392804944,1761973843068,-176.7,0.00015942,2]
[392804945,1761973843078,-176.7,0.00015942,2]
[392804946,1761973843088,-1000.0,0.00016006,2]
[392804947,1761973843100,-655.83,0.00016033,2]
[392804949,1761973843111,-166.96,0.00016056,2]
[392804951,1761973843121,-573.99399607,0.00016068,2]
[392804953,1761973843131,-1500.0,0.00016068,2]
[392804955,1761973843141,-14880.2715502,0.00016137,2]
[392804957,1761973843150,-553.64373807,0.00016182,2]
[392804959,1761973843160,-655.83953253,0.00016307,2]
[392804961,1761973843170,-203.5904631,0.00016321,2]
[392804963,1761973843179,-433.0,0.00016322,2]
[392804965,1761973843190,-587.0,0.00016393,2]
[392804967,1761973843199,-257.91778498,0.00016455,2]
[392804969,1761973843209,-334.5472959,0.00016455,2]
[392804971,1761973843219,-155.0,0.00016499,2]
[392804973,1761973843228,-428.0,0.00016514,2]
[392804975,1761973843238,-842.84639252,0.00016616,2]
[392804977,1761973843248,-3619.1010416,0.00016674,2]
[392804979,1761973843259,-548.44,0.00016692,2]
[392804981,1761973843268,-300.0,0.00016692,2]
[392804984,1761973843278,-337.22,0.00016692,2]
[392804986,1761973843288,-150.0,0.00016692,2]
[392804988,1761973843297,-300.0,0.00016692,2]
[392804990,1761973843307,-150.0,0.00016692,2]
[392804992,1761973843316,-165.46,0.00016712,2]
[392804994,1761973843326,-574.12855637,0.0001673,2]
[392804997,1761973843336,-773.0,0.000168,2]
[392805000,1761973843346,-700.0,0.00016808,2]
[392805002,1761973843356,-1100.0,0.00016808,2]
[392805004,1761973843366,-3000.0,0.00016808,2]
[392805005,1761973843376,-166.96,0.00016852,2]
[392805006,1761973843385,-300.0,0.00016882,2]
[392805007,1761973843395,-901.1535792,0.00016898,2]
[392805008,1761973843405,-26265.7366509,0.00016909,2]
[392805009,1761973843414,-3906.74,0.00016986,2]
[392805010,1761973843425,-250.0,0.00017,2]
[392805011,1761973843434,-451.81,0.00017,7]
[392805012,1761973843444,-500.0,0.00017,7]
[392805013,1761973843454,-500.0,0.00017,7]
[392805014,1761973843464,-244.04,0.00017,7]
[392805015,1761973843475,-500.0,0.00017,7]
[392805016,1761973843484,-500.0,0.00017,2]
[392805017,1761973843494,-508.08553926,0.00017,2]
[392805018,1761973843503,-2000.0,0.00017,2]
[392805019,1761973843514,-697.96,0.00017068,2]
[392805020,1761973843524,-697.96,0.00017068,2]
[392805021,1761973843533,-697.96,0.00017068,2]
[392805022,1761973843543,-697.96,0.00017068,2]
[392805023,1761973843553,-697.96,0.00017068,2]
[392805024,1761973843562,-560.34,0.00017068,2]
[392805025,1761973843577,-588.01,0.00017142,2]
[392805026,1761973843586,-500.0,0.0001726,2]
[392805027,1761973843599,-595.37131296,0.00017278,2]
[392805028,1761973843610,-201.0745424,0.00017323,2]
[392805029,1761973843620,-5860.6780253,0.00017335,2]
[392805030,1761973843630,-807.530595,0.00017336,2]
[392805031,1761973843640,-168.93,0.00017346,2]
[392805032,1761973843650,-273.58326888,0.00017409,2]
[392805034,1761973843662,-154.33,0.00017439,2]
[392805036,1761973843671,-454.07,0.00017514,2]
[392805037,1761973843681,-152.0,0.00017514,3]
[392805039,1761973843691,-476.55,0.00017534,2]
[392805040,1761973843700,-638.0,0.00017637,2]
[392805041,1761973843710,-152.0,0.00017682,4]
[392805042,1761973843719,-1058.5846835,0.00017698,2]
[392805043,1761973843734,-33.4153165,0.00017698,2]
[392805044,1761973843743,-608.81782371,0.00017784,2]
[392805045,1761973843755,-391.18217629,0.00017784,2]
[392805046,1761973843765,-267.46074303,0.00017824,2]
[392805048,1761973843775,-346.92554585,0.00017824,2]
[392805050,1761973843784,-670.58624095,0.00017825,2]
[392805051,1761973843794,-194.72792766,0.00017825,2]
[392805052,1761973843803,-256.06143669,0.00017826,2]
[392805053,1761973843819,-60.35024595,0.00017826,2]
[392805055,1761973843829,-152.0,0.00017849,5]
[392805056,1761973843839,-334.99975405,0.00017904,2]
[392805057,1761973843850,-365.00024595,0.00017904,2]
[392805058,1761973843860,-416.05975406,0.00017904,2]
[392805059,1761973843872,-683.94024594,0.00017904,2]
[392805060,1761973843882,-239.69431998,0.00017904,2]
[392805061,1761973843894,-2760.30568002,0.00017904,2]
[392805062,1761973843903,-150.0,0.00017945,2]
[392805063,1761973843913,-217.3955486,0.00017945,2]
[392805064,1761973843922,-150.0,0.00017945,2]
[392805065,1761973843932,-150.0,0.00017945,2]
[392805066,1761973843941,-151.13904288,0.00017945,2]
[392805067,1761973843951,-150.0,0.00017945,2]
[392805068,1761973843960,-500.0,0.00017945,2]
[392805069,1761973843970,-150.0,0.00017945,2]
[392805070,1761973843980,-150.0,0.00017945,2]
[392805071,1761973843990,-150.0,0.00017945,2]
[392805072,1761973844000,-263.17194606,0.00017945,2]
[392805073,1761973844009,-500.0,0.00017945,2]
[392805074,1761973844019,-150.0,0.00017945,2]
[392805075,1761973844029,-158.47970691,0.00017945,2]
[392805076,1761973844039,-150.0,0.00017945,2]
[392805077,1761973844049,-150.0,0.00017945,2]
[392805078,1761973844059,-150.0,0.00017945,2]
[392805079,1761973844068,-150.0,0.00017945,2]
[392805080,1761973844078,-150.0,0.00017945,2]
[392805081,1761973844087,-150.0,0.00017945,2]
[392805082,1761973844097,-150.0,0.00017945,2]
[392805083,1761973844359,-150.0,0.00017945,2]
[392805084,1761973844369,-500.0,0.00017945,2]
[392805085,1761973844379,-150.0,0.00017945,2]
[392805086,1761973844389,-500.0,0.00017945,2]
[392805087,1761973844399,-642.0,0.00017965,2]
[392805088,1761973844409,-883.37295077,0.00018,2]
[392805089,1761973844418,-205.276027,0.00018,2]
[392805090,1761973844428,-152.0,0.00018016,6]
[392805091,1761973844438,-151.92422519,0.00018082,2]
[392805092,1761973844447,-150.0,0.00018082,2]
[392805093,1761973844457,-150.0,0.00018082,2]
[392805094,1761973844466,-500.0,0.00018082,2]
[392805095,1761973844476,-150.0,0.00018082,2]
[392805096,1761973844486,-284.52204477,0.00018082,2]
[392805097,1761973844496,-150.0,0.00018082,2]
[392805098,1761973844505,-150.0,0.00018082,2]
[392805099,1761973844515,-150.34146439,0.00018082,2]
[392805100,1761973844524,-150.0,0.00018082,2]
[392805101,1761973844534,-150.0,0.00018082,2]
[392805102,1761973844544,-500.0,0.00018082,2]
[392805103,1761973844553,-150.0,0.00018082,2]
[392805104,1761973844563,-500.0,0.00018082,2]
[392805105,1761973844576,-1000.0,0.00018082,2]
[392805106,1761973844586,-1761.74119247,0.000181,2]
[392805107,1761973844596,-152.0,0.00018184,7]
[392805108,1761973844608,-257.1993572,0.00018207,2]
[392805109,1761973844618,-150.0,0.00018219,2]
[392805110,1761973844627,-204.65027273,0.00018219,2]
[392805111,1761973844636,-500.0,0.00018219,2]
[392805112,1761973844647,-150.0,0.00018219,2]
[392805113,1761973844656,-200.0,0.00018219,2]
[392805114,1761973844665,-150.0,0.00018219,2]
[392805115,1761973844675,-150.0,0.00018219,2]
[392805116,1761973844684,-150.0,0.00018219,2]
[392805117,1761973844693,-500.0,0.00018219,2]
[392805118,1761973844704,-263.28695476,0.00018219,2]
[392805119,1761973844713,-500.0,0.00018219,2]
[392805120,1761973844724,-152.0,0.00018351,8]
[392805121,1761973844733,-150.0,0.00018356,2]
[392805122,1761973844743,-500.0,0.00018356,2]
[392805123,1761973844752,-150.0,0.00018356,2]
[392805124,1761973844762,-204.39013424,0.00018356,2]
[392805125,1761973844771,-150.0,0.00018356,2]
[392805126,1761973844781,-500.0,0.00018356,2]
[392805127,1761973844790,-500.0,0.00018356,2]
[392805128,1761973844800,-19234.12,0.00018356,2]
[392805129,1761973844809,-150.808212,0.00018375,2]
[392805130,1761973844818,-154.854,0.00018375,2]
[392805131,1761973844828,-476.65,0.00018384,2]
[392805132,1761973844837,-476.65,0.00018384,2]
[392805133,1761973844846,-226.48535607,0.00018411,4]
[392805134,1761973844856,-212.04981833,0.00018493,2]
[392805135,1761973844866,-500.0,0.00018493,2]
[392805136,1761973844875,-150.0,0.00018493,2]
[392805137,1761973844884,-150.0,0.00018493,2]
[392805138,1761973844895,-500.0,0.00018493,2]
[392805139,1761973844904,-152.0,0.00018518,9]
[392805140,1761973844915,-820.0,0.00018565,2]
[392805141,1761973844924,-607.0,0.00018565,2]
[392805142,1761973844933,-573.0,0.00018565,2]
[392805143,1761973844943,-383.384465,0.00018565,2]
[392805144,1761973844960,-2418.0,0.00018565,2]
[392805145,1761973845267,-961.99,0.000149,2]
[392805146,1761973845279,-545.73858892,0.000149,2]
[392805147,1761973846743,-383.32467953,0.000149,2]
[392805163,1761974028034,-189.79718669,0.00013686,2]
[392805290,1761974645207,-65.03417211,0.00013686,2]
[392805291,1761974645234,-131.9454966,0.00013901,2]
[392805310,1761974762349,-118.0545034,0.00013901,2]
[392805311,1761974762372,-69.35557689,0.0001399,2]
[392805312,1761974765060,-202.13349539,0.0001399,2]
[392805313,1761974765537,-202.13349539,0.0001399,2]
[392805314,1761974772476,-569.45326022,0.0001399,2]
[392805315,1761974772638,-569.45326022,0.0001399,2]
[392805316,1761974780671,-263.96019378,0.0001399,2]
[392805372,1761974783671,-154.34176985,0.0001399,2]
[392805418,1761974838126,-181.10314797,0.00013885,2]
[392805427,1761974864560,898.06562151,0.00013,15]
[392805431,1761974897238,-351.95615644,0.00013873,2]
[392805433,1761974900670,-931.49,0.00013873,2]
[392805434,1761974901209,-931.49,0.00013873,2]
[392805517,1761975031468,-165.75286402,0.00013779,2]
[392805518,1761975031478,-195.0,0.00013826,2]
[392805519,1761975031488,-142.46712673,0.00013873,2]
[392805520,1761975031499,-3025.85671683,0.00013873,2]
[392805521,1761975031509,-225.79174703,0.00013879,2]
[392805522,1761975031520,-18.89685203,0.00013885,2]
[392805523,1761975031535,-183.77,0.00013952,2]
[392805524,1761975031545,-1200.0,0.00013989,2]
[392805525,1761975031555,-300.0,0.00013989,2]
[392805526,1761975031564,-1105.91206221,0.0001399,2]
[392805527,1761975031583,-441.57948671,0.0001399,2]
[392805528,1761975031712,-1586.22095898,0.0001399,2]
[392805529,1761975031724,-2020.02528199,0.0001399,2]
[392805530,1761975031734,-300.0,0.00014545,2]
[392805531,1761975031743,-1200.0,0.00014546,2]
[392805545,1761975032005,-150.0,0.00014547,2]
[392805547,1761975032015,-5203.73376363,0.00014548,2]
[392805557,1761975037470,-982.19262699,0.00014548,2]
[392805558,1761975037481,-2217.072792,0.00014548,2]
[392805559,1761975037584,-9071.0081592,0.00014548,2]
[392805560,1761975037596,-3393.66132321,0.00014548,2]
[392805561,1761975037607,-8414.1678015,0.00014548,2]
[392805562,1761975037618,-150.99,0.00014548,2]
[392805563,1761975037628,-9999.99,0.00014548,2]
[392805564,1761975037638,-2903.36,0.00014548,2]
[392805566,1761975037647,-168.0,0.00014595,2]
[392805567,1761975037657,-7730.16405247,0.00014595,2]
[392805570,1761975039683,-2269.82594753,0.00014595,2]
[392805571,1761975039693,-440.0,0.00014615,2]
[392805572,1761975039702,-440.0,0.00014636,2]
[392805573,1761975039711,-440.0,0.00014646,2]
[392805574,1761975039724,-159.65,0.00014694,2]
[392805575,1761975039733,-440.0,0.00014733,2]
[392805576,1761975039742,-440.0,0.00014739,2]
[392805577,1761975039752,-168.0,0.00014851,2]
[392805578,1761975039761,-440.0,0.00014877,2]
[392805579,1761975039770,-707.48,0.00014891,2]
[392805580,1761975039779,-151.0,0.00014891,2]
[392805581,1761975039788,-151.0,0.00014891,2]
[392805582,1761975039798,-151.0,0.00014891,2]
[392805583,1761975039807,-151.0,0.00014891,2]
[392805584,1761975039816,-151.0,0.00014891,2]
[392805585,1761975039825,-151.0,0.00014891,2]
[392805586,1761975039834,-151.0,0.00014891,2]
[392805587,1761975039844,-151.0,0.00014891,2]
[392805588,1761975039853,-151.0,0.00014891,2]
[392805589,1761975039862,-151.0,0.00014891,2]
[392805590,1761975039872,-151.0,0.00014891,2]
[392805591,1761975039881,-151.0,0.00014891,2]
[392805592,1761975039891,-151.0,0.00014891,2]
[392805593,1761975039900,-151.0,0.00014891,2]
[392805594,1761975039909,-151.0,0.00014891,2]
[392805595,1761975039918,-151.0,0.00014891,2]
[392805596,1761975039927,-151.0,0.00014891,2]
[392805597,1761975039936,-151.0,0.00014891,2]
[392805598,1761975039945,-151.0,0.00014891,2]
[392805599,1761975039955,-151.0,0.00014891,2]
[392805600,1761975039964,-151.0,0.00014891,2]
[392805601,1761975039974,-151.0,0.00014891,2]
[392805602,1761975039983,-6404.7246,0.000149,2]
[392805603,1761975039993,-166.95240209,0.000149,2]
[392805604,1761975040002,-40330.70826093,0.000149,2]
[392805605,1761975040011,-414.6898,0.000149,2]
[392805606,1761975040021,-161.13954148,0.000149,2]
[392805607,1761975040031,-150.50800485,0.00014928,2]
[392805608,1761975040040,-322.6107,0.00014966,2]
[392805609,1761975040049,-646.65982734,0.00014966,2]
[392805611,1761975040058,-514.84070869,0.00014966,2]
[392805614,1761975040067,-500.0,0.00014966,2]
[392805615,1761975040076,-500.0,0.00014966,2]
[392805616,1761975040085,-500.0,0.00014966,2]
[392805617,1761975040094,-500.0,0.00014966,2]
[392805618,1761975040103,-500.0,0.00014966,2]
[392805619,1761975040113,-248.71531821,0.00014966,2]
[392805621,1761975040122,-500.0,0.00014966,2]
[392805622,1761975040131,-500.0,0.00014966,2]
[392805623,1761975040140,-500.0,0.00014966,2]
[392805624,1761975040149,-500.0,0.00014966,2]
[392805625,1761975040158,-235.02964706,0.00014966,2]
[392805626,1761975040167,-187.78006525,0.00014966,2]
[392805627,1761975040176,-500.0,0.00014972,2]
[392805628,1761975040186,-500.0,0.00014972,2]
[392805629,1761975040195,-500.0,0.00014972,2]
[392805630,1761975040208,-178.27037756,0.00014972,2]
[392805631,1761975040218,-500.0,0.00014972,2]
[392805632,1761975040227,-190.82323287,0.00014972,2]
[392805633,1761975040235,-237.78375784,0.00014972,2]
[392805634,1761975040244,-501.37334608,0.00014973,2]
[392805635,1761975040254,-500.0,0.00014973,2]
[392805636,1761975040263,-525.37226921,0.00014973,2]
[392805637,1761975040271,-500.0,0.00014973,2]
[392805638,1761975040281,-502.11686756,0.00014973,2]
[392805639,1761975040290,-500.0,0.00014973,2]
[392805640,1761975040299,-151.0,0.00014974,2]
[392805641,1761975040308,-29777.7706105,0.0001498,2]
[392805642,1761975040317,-500.0,0.00014999,2]
[392805643,1761975040326,-175.8296513,0.00014999,2]
[392805644,1761975040336,-343.25553677,0.00014999,2]
[392805645,1761975040345,-251.44352894,0.00014999,2]
[392805646,1761975040354,-500.0,0.00014999,2]
[392805647,1761975040364,-385.30375731,0.00014999,2]
[392805648,1761975040373,-1303814.67082268,0.00015,2]
[392805649,1761975040386,-87600.35400868,0.00015,2]
[392805664,1761975045567,-399.61000001,0.00015,2]
[392805665,1761975045733,-1153.7255486,0.00015,2]
[392805963,1761975799215,-10.0,0.00014,2]
[392805964,1761975799229,-6180.0,0.00014,2]
[392805978,1761975872543,-195.0,0.00014016,2]
[392805979,1761975872574,-250.0,0.00014024,2]
[392805980,1761975872605,-195.0,0.00014032,2]
[392805981,1761975872639,-195.0,0.00014075,2]
[392805982,1761975872670,-272.73765035,0.00014107,2]
[392805983,1761975872713,-735.3,0.0001415,2]
[392805984,1761975872752,-250.0,0.00014259,2]
[392805985,1761975872787,-813.9246993,0.00014348,2]
[392805986,1761975872802,-195.0,0.00014348,2]
[392805987,1761975872815,-191.0753007,0.00014348,2]
[392805988,1761975872826,-58.9246993,0.00014697,2]
[392805989,1761975872844,-195.0,0.00014697,2]
[392805990,1761975872856,-46.0753007,0.00014697,2]
[392805991,1761975872867,-148.9246993,0.00014697,2]
[392805992,1761975872884,-272.73765035,0.00014697,2]
[392805993,1761975872897,-735.3,0.00014697,2]
[392805994,1761975872909,-43.03765035,0.00014697,2]
[392805995,1761975872920,-150.0,0.00014899,2]
[392805996,1761975872931,-56.96234965,0.000149,2]
[392805997,1761975872943,-323.22335035,0.000149,2]
[392805998,1761975872954,-196.9797,0.000149,2]
[392805999,1761975872964,-679.79694965,0.000149,2]
[392806000,1761975888425,159.55,7.718e-05,2]
[392806001,1761975888606,159.55,8.683e-05,2]
[392806002,1761975888803,159.55,9.648e-05,2]
[392806003,1761975889012,159.55,0.00010612,2]
[392806004,1761975889221,159.55,0.00011577,2]
[392806005,1761975889434,159.55,0.00012542,2]
[392806006,1761975889632,159.55,0.00013507,2]
[392806008,1761975908667,150.0,0.00013488,2]
[392806009,1761975908726,150.0,0.00013488,2]
[392806010,1761975915423,150.0,0.00013488,2]
[392806011,1761975915887,150.0,0.00013488,2]
[392806013,1761975922575,236.22095898,0.00013488,2]
[392806014,1761975927894,150.0,0.00013488,2]
[392806015,1761975928050,150.0,0.00013488,2]
[392806016,1761975929718,150.0,0.00013488,2]
[392806151,1761976231627,-166.98,0.00014062,2]
[392806154,1761976231639,-1905.97,0.00014117,2]
[392806156,1761976231650,-215.76,0.00014172,2]
[392806159,1761976231660,-159.55,0.00014471,2]
[392806160,1761976231669,-195.0,0.00014685,2]
[392806161,1761976231680,-195.0,0.00014847,2]
[392806162,1761976231691,-1832.9318,0.0001485,2]
[392806163,1761976231701,-150.0,0.00014899,2]
[392806164,1761976231711,-1200.0,0.00014899,2]
[392806165,1761976231722,-2086.35805035,0.000149,2]
[392806166,1761976231732,-169.926,0.000149,2]
[392806167,1761976231742,-2140.8871,0.000149,2]
[392806168,1761976231755,-151.0,0.000149,2]
[392806169,1761976231765,-414.6898,0.000149,2]
[392806170,1761976231775,-150.50800485,0.000149,2]
[392806171,1761976231785,-2313.4316,0.000149,2]
[392806172,1761976231795,-166.95240209,0.000149,2]
[392806173,1761976231807,-4849.72642401,0.000149,2]
[392806174,1761976231818,-2694.45845538,0.000149,2]
[392806175,1761976231830,-347.14712322,0.000149,2]
[392806176,1761976231841,-4466.93625076,0.000149,2]
[392806177,1761976231851,-304.35710302,0.000149,2]
[392806178,1761976231860,-500.0,0.00014904,2]
[392806179,1761976231871,-500.0,0.00014973,2]
[392806180,1761976231881,-501.53442277,0.00014973,2]
[392806181,1761976231892,-161.78455166,0.00014973,2]
[392806182,1761976231902,-500.0,0.00014973,2]
[392806183,1761976231911,-500.0,0.00014973,2]
[392806184,1761976231921,-500.0,0.00014973,2]
[392806185,1761976231931,-500.0,0.00014973,2]
[392806186,1761976231943,-500.0,0.00014973,2]
[392806187,1761976231953,-501.37334608,0.00014973,2]
[392806188,1761976231963,-500.0,0.00014973,2]
[392806189,1761976231973,-500.0,0.00014973,2]
[392806190,1761976231984,-500.0,0.00014973,2]
[392806191,1761976231994,-500.0,0.00014973,2]
[392806192,1761976232005,-502.06124753,0.00014973,2]
[392806193,1761976232015,-167.98860431,0.00014973,2]
[392806194,1761976232026,-501.22801815,0.00014973,2]
[392806195,1761976232037,-500.0,0.00014973,2]
[392806197,1761976232048,-500.0,0.00014973,2]
[392806199,1761976232059,-505.47351927,0.00014973,2]
[392806201,1761976232069,-500.0,0.00014973,2]
[392806203,1761976232079,-500.0,0.00014973,2]
[392806205,1761976232090,-516.66774488,0.00014985,2]
[392806208,1761976232100,-154.12747994,0.00014986,2]
[392806210,1761976232109,-220.29140277,0.00014986,2]
[392806212,1761976232119,-214.82943564,0.00014986,2]
[392806214,1761976232129,-150.0,0.00014986,2]
[392806216,1761976232139,-155.68041543,0.00014986,2]
[392806218,1761976232148,-150.0,0.00014986,2]
[392806220,1761976232158,-150.0,0.00014986,2]
[392806222,1761976232168,-3477.5486869,0.00014992,2]
[392806224,1761976232178,-11853.607802,0.00014993,2]
[392806226,1761976232190,-171.53148357,0.00014995,2]
[392806228,1761976232200,-26104.3232454,0.00014996,2]